[Event "Early-Titled-Tuesday-Blitz-September-26-2023"]
[Site "Chess.com"]
[Date "2023.09.26"]
[Round "6"]
[White "Evgeny81"]
[Black "Squirlolz"]
[Result "0-1"]
[WhiteElo "2746"]
[BlackElo "2557"]
[TimeControl "180+1"]
[EndTime "9:09:01 PDT"]
[Termination "Squirlolz won by resignation"]

1. e4 {[%clk 0:03:00.9]} 1... c5 {[%clk 0:02:59.5]} 2. Nf3 {[%clk 0:02:58.6]}
2... d6 {[%clk 0:02:59.5]} 3. d4 {[%clk 0:02:59.1]} 3... cxd4 {[%clk 0:03:00.4]}
4. Nxd4 {[%clk 0:02:59.6]} 4... Nf6 {[%clk 0:02:57.4]} 5. Nc3 {[%clk 0:02:59.9]}
5... a6 {[%clk 0:02:57.5]} 6. Be3 {[%clk 0:02:58.2]} 6... e5 {[%clk 0:02:56.4]}
7. Nb3 {[%clk 0:02:58.3]} 7... Be6 {[%clk 0:02:55.3]} 8. Be2 {[%clk 0:02:58.5]}
8... Be7 {[%clk 0:02:55.4]} 9. O-O {[%clk 0:02:58.6]} 9... Nbd7 {[%clk
0:02:55.6]} 10. Re1 {[%clk 0:02:58.1]} 10... O-O {[%clk 0:02:52.9]} 11. a4
{[%clk 0:02:58.4]} 11... Rc8 {[%clk 0:02:49]} 12. a5 {[%clk 0:02:54.1]} 12...
Rxc3 {[%clk 0:02:47.3]} 13. bxc3 {[%clk 0:02:54.5]} 13... Nxe4 {[%clk
0:02:48.2]} 14. Bd3 {[%clk 0:02:48.4]} 14... Nxc3 {[%clk 0:02:39.9]} 15. Bxh7+
{[%clk 0:02:45.6]} 15... Kxh7 {[%clk 0:02:37.8]} 16. Qd3+ {[%clk 0:02:45.6]}
16... f5 {[%clk 0:02:18.7]} 17. Qxc3 {[%clk 0:02:45.6]} 17... d5 {[%clk
0:02:17.1]} 18. Nc5 {[%clk 0:02:35.9]} 18... Bxc5 {[%clk 0:01:05.2]} 19. Bxc5
{[%clk 0:02:36.8]} 19... Nxc5 {[%clk 0:01:05.7]} 20. Qxc5 {[%clk 0:02:34.5]}
20... Qf6 {[%clk 0:01:06]} 21. Rab1 {[%clk 0:02:28]} 21... Rc8 {[%clk
0:01:05.2]} 22. Qd6 {[%clk 0:02:20.4]} 22... e4 {[%clk 0:01:00.2]} 23. Rb6
{[%clk 0:02:08.9]} 23... Qc3 {[%clk 0:00:59.8]} 24. Rf1 {[%clk 0:02:02.1]} 24...
Rc6 {[%clk 0:00:50.3]} 25. Rxc6 {[%clk 0:01:59.4]} 25... Qxc6 {[%clk 0:00:51.2]}
26. Qxc6 {[%clk 0:01:58.8]} 26... bxc6 {[%clk 0:00:52.1]} 27. Rb1 {[%clk
0:01:50.9]} 27... d4 {[%clk 0:00:45.5]} 28. Rb6 {[%clk 0:01:43.3]} 28... Bd5
{[%clk 0:00:25.9]} 29. Kf1 {[%clk 0:01:20.6]} 29... Bc4+ {[%clk 0:00:25.9]} 30.
Ke1 {[%clk 0:01:20]} 30... Bb5 {[%clk 0:00:26.8]} 31. c4 {[%clk 0:00:45.5]}
31... dxc3 {[%clk 0:00:10.4]} 32. Kd1 {[%clk 0:00:43.8]} 32... Bd3 {[%clk
0:00:10]} 33. Rxc6 {[%clk 0:00:38]} 33... c2+ {[%clk 0:00:10.2]} 34. Kd2 {[%clk
0:00:35.8]} 34... g6 {[%clk 0:00:10.2]} 35. h4 {[%clk 0:00:25]} 35... Kh6 {[%clk
0:00:10.5]} 36. g3 {[%clk 0:00:19.5]} 36... Kh5 {[%clk 0:00:10.5]} 37. Rb6
{[%clk 0:00:13.6]} 37... g5 {[%clk 0:00:08.5]} 38. Rf6 {[%clk 0:00:08]} 38...
Kg4 {[%clk 0:00:07]} 39. Rg6 {[%clk 0:00:04.8]} 39... Kf3 {[%clk 0:00:05.7]} 40.
Rxg5 {[%clk 0:00:05]} 40... Kxf2 {[%clk 0:00:01.8]} 41. Rxf5+ {[%clk 0:00:05.1]}
41... Kxg3 {[%clk 0:00:02.7]} 42. h5 {[%clk 0:00:03.7]} 42... e3+ {[%clk
0:00:02.4]} 43. Kxd3 {[%clk 0:00:03.5]} 43... c1=Q {[%clk 0:00:02]} 44. Re5
{[%clk 0:00:02.9]} 44... Qd2+ {[%clk 0:00:02.3]} 45. Ke4 {[%clk 0:00:02.9]}
45... e2 {[%clk 0:00:03.2]} 46. Rg5+ {[%clk 0:00:03.5]} 46... Kh4 {[%clk
0:00:03.6]} 47. Re5 {[%clk 0:00:03.8]} 47... e1=Q+ {[%clk 0:00:04.5]} 48. Kf5
{[%clk 0:00:04.6]} 48... Qxe5+ {[%clk 0:00:04.9]} 49. Kxe5 {[%clk 0:00:05.1]}
49... Kxh5 {[%clk 0:00:05.8]} 0-1

[Event "Early-Titled-Tuesday-Blitz-September-26-2023"]
[Site "Chess.com"]
[Date "2023.09.26"]
[Round "6"]
[White "ajedrezhoy"]
[Black "Rap_woyska"]
[Result "0-1"]
[WhiteElo "2385"]
[BlackElo "2517"]
[TimeControl "180+1"]
[EndTime "9:09:01 PDT"]
[Termination "Rap_woyska won on time"]

1. c4 {[%clk 0:03:00.9]} 1... c6 {[%clk 0:02:52.6]} 2. Nf3 {[%clk 0:02:57.8]}
2... d5 {[%clk 0:02:52.5]} 3. e3 {[%clk 0:02:58]} 3... Nf6 {[%clk 0:02:51.8]} 4.
Nc3 {[%clk 0:02:57.8]} 4... a6 {[%clk 0:02:51.7]} 5. b3 {[%clk 0:02:57]} 5...
Bg4 {[%clk 0:02:51.3]} 6. h3 {[%clk 0:02:55.4]} 6... Bh5 {[%clk 0:02:51.3]} 7.
Bb2 {[%clk 0:02:52.3]} 7... e6 {[%clk 0:02:49.5]} 8. Be2 {[%clk 0:02:49.2]} 8...
Nbd7 {[%clk 0:02:49.6]} 9. O-O {[%clk 0:02:49]} 9... Bd6 {[%clk 0:02:49.8]} 10.
d4 {[%clk 0:02:47.8]} 10... Qb8 {[%clk 0:02:48.8]} 11. a4 {[%clk 0:02:21.7]}
11... O-O {[%clk 0:02:47.9]} 12. Qc1 {[%clk 0:02:17]} 12... a5 {[%clk 0:02:46]}
13. Ba3 {[%clk 0:02:16.4]} 13... Re8 {[%clk 0:02:41.6]} 14. Bxd6 {[%clk
0:02:14.7]} 14... Qxd6 {[%clk 0:02:42.2]} 15. Qc2 {[%clk 0:01:59.2]} 15... e5
{[%clk 0:02:16.6]} 16. Nxe5 {[%clk 0:01:51.1]} 16... Bxe2 {[%clk 0:02:00.8]} 17.
Nxe2 {[%clk 0:01:49.3]} 17... Nxe5 {[%clk 0:02:00.4]} 18. dxe5 {[%clk
0:01:49.1]} 18... Qxe5 {[%clk 0:02:00.3]} 19. Nd4 {[%clk 0:01:46.8]} 19... dxc4
{[%clk 0:01:43.7]} 20. bxc4 {[%clk 0:01:43.9]} 20... Ne4 {[%clk 0:01:42]} 21.
Rab1 {[%clk 0:01:40.8]} 21... Nc5 {[%clk 0:01:42.1]} 22. Rfd1 {[%clk 0:01:36.1]}
22... Rad8 {[%clk 0:01:41.3]} 23. Qc3 {[%clk 0:01:12.9]} 23... Ne4 {[%clk
0:01:00.6]} 24. Qc2 {[%clk 0:01:02.3]} 24... Nc5 {[%clk 0:01:00.6]} 25. Qc3
{[%clk 0:00:49.6]} 25... Ra8 {[%clk 0:01:00.6]} 26. Ra1 {[%clk 0:00:47.6]} 26...
h6 {[%clk 0:00:51.5]} 27. Qb2 {[%clk 0:00:46.9]} 27... Red8 {[%clk 0:00:47.7]}
28. Qb6 {[%clk 0:00:44.7]} 28... g6 {[%clk 0:00:30.5]} 29. Nf3 {[%clk
0:00:34.9]} 29... Rxd1+ {[%clk 0:00:25.7]} 30. Rxd1 {[%clk 0:00:34.2]} 30... Qe7
{[%clk 0:00:25.8]} 31. Rb1 {[%clk 0:00:26.4]} 31... Nxa4 {[%clk 0:00:23.9]} 32.
Qxb7 {[%clk 0:00:25.9]} 32... Qxb7 {[%clk 0:00:24.8]} 33. Rxb7 {[%clk
0:00:25.8]} 33... Nc5 {[%clk 0:00:20.9]} 34. Rb2 {[%clk 0:00:19.2]} 34... a4
{[%clk 0:00:20.3]} 35. Ra2 {[%clk 0:00:19]} 35... Nb3 {[%clk 0:00:19.4]} 36. Nd4
{[%clk 0:00:18.6]} 36... Nxd4 {[%clk 0:00:16.2]} 37. exd4 {[%clk 0:00:18.7]}
37... Kf8 {[%clk 0:00:17.1]} 38. d5 {[%clk 0:00:18.6]} 38... cxd5 {[%clk
0:00:16.9]} 39. cxd5 {[%clk 0:00:18.9]} 39... Ke7 {[%clk 0:00:17.8]} 40. f4
{[%clk 0:00:18.5]} 40... Kd6 {[%clk 0:00:18.5]} 41. Kf2 {[%clk 0:00:18.7]} 41...
Kxd5 {[%clk 0:00:19.2]} 42. g4 {[%clk 0:00:18.5]} 42... Kc4 {[%clk 0:00:19.5]}
43. Kg3 {[%clk 0:00:16.4]} 43... a3 {[%clk 0:00:18.8]} 44. f5 {[%clk 0:00:15.7]}
44... Kb3 {[%clk 0:00:18]} 45. Rf2 {[%clk 0:00:15.7]} 45... a2 {[%clk
0:00:17.8]} 46. Rf1 {[%clk 0:00:15.1]} 46... a1=Q {[%clk 0:00:17.9]} 47. Rxa1
{[%clk 0:00:15.2]} 47... Rxa1 {[%clk 0:00:18.5]} 48. fxg6 {[%clk 0:00:15.7]}
48... fxg6 {[%clk 0:00:19.2]} 0-1

[Event "Early-Titled-Tuesday-Blitz-September-26-2023"]
[Site "Chess.com"]
[Date "2023.09.26"]
[Round "6"]
[White "zimmm36"]
[Black "h4parah5"]
[Result "1/2-1/2"]
[WhiteElo "2705"]
[BlackElo "2958"]
[TimeControl "180+1"]
[EndTime "9:09:02 PDT"]
[Termination "Game drawn by repetition"]

1. c4 {[%clk 0:03:00]} 1... e6 {[%clk 0:02:57.8]} 2. Nf3 {[%clk 0:02:59.1]} 2...
d5 {[%clk 0:02:58.7]} 3. d4 {[%clk 0:02:58.4]} 3... Nf6 {[%clk 0:02:58.9]} 4. g3
{[%clk 0:02:59]} 4... g6 {[%clk 0:02:54.4]} 5. Bg2 {[%clk 0:02:58.8]} 5... Bg7
{[%clk 0:02:54.7]} 6. O-O {[%clk 0:02:59.3]} 6... O-O {[%clk 0:02:55.2]} 7. Qc2
{[%clk 0:02:59.8]} 7... Nc6 {[%clk 0:02:51.3]} 8. Rd1 {[%clk 0:02:56.6]} 8... a5
{[%clk 0:02:42.6]} 9. Nbd2 {[%clk 0:02:54.9]} 9... b6 {[%clk 0:02:41]} 10. b3
{[%clk 0:02:54.2]} 10... Bb7 {[%clk 0:02:39.5]} 11. Bb2 {[%clk 0:02:53.2]} 11...
Qe7 {[%clk 0:02:37.3]} 12. a3 {[%clk 0:02:52.8]} 12... Rad8 {[%clk 0:02:27.2]}
13. Rac1 {[%clk 0:02:51.2]} 13... Nd7 {[%clk 0:02:19.1]} 14. e4 {[%clk
0:02:48.4]} 14... dxe4 {[%clk 0:02:12.7]} 15. Nxe4 {[%clk 0:02:49.3]} 15... Nf6
{[%clk 0:02:06.1]} 16. Ne5 {[%clk 0:02:39.3]} 16... Nxe4 {[%clk 0:02:00.2]} 17.
Bxe4 {[%clk 0:02:20.9]} 17... Bxe5 {[%clk 0:01:59.2]} 18. dxe5 {[%clk
0:02:20.3]} 18... Rxd1+ {[%clk 0:01:59.6]} 19. Rxd1 {[%clk 0:02:21.2]} 19... Rd8
{[%clk 0:01:59.8]} 20. Qe2 {[%clk 0:02:02]} 20... Rxd1+ {[%clk 0:01:48.2]} 21.
Qxd1 {[%clk 0:02:01.9]} 21... Nd8 {[%clk 0:01:49.1]} 22. Bxb7 {[%clk 0:01:52.3]}
22... Nxb7 {[%clk 0:01:50]} 23. Qf3 {[%clk 0:01:52.6]} 23... Nc5 {[%clk
0:01:48.1]} 24. Bc1 {[%clk 0:01:47.8]} 24... Kg7 {[%clk 0:01:41.4]} 25. h4
{[%clk 0:01:44.1]} 25... h6 {[%clk 0:01:41]} 26. b4 {[%clk 0:01:40.4]} 26...
axb4 {[%clk 0:01:39.5]} 27. axb4 {[%clk 0:01:41.3]} 27... Nd7 {[%clk 0:01:39.6]}
28. Qc3 {[%clk 0:01:30.4]} 28... Qf8 {[%clk 0:01:31.8]} 29. Qd2 {[%clk
0:01:24.4]} 29... Nxe5 {[%clk 0:01:30.3]} 30. Bb2 {[%clk 0:01:20.9]} 30... f6
{[%clk 0:01:28.8]} 31. Bxe5 {[%clk 0:01:20.3]} 31... fxe5 {[%clk 0:01:29.2]} 32.
Qd7+ {[%clk 0:01:16]} 32... Qf7 {[%clk 0:01:28]} 33. Qd8 {[%clk 0:01:16.4]}
33... h5 {[%clk 0:01:15.5]} 34. c5 {[%clk 0:01:15.7]} 34... bxc5 {[%clk
0:01:13.2]} 35. bxc5 {[%clk 0:01:16.6]} 35... Kh7 {[%clk 0:01:12]} 36. c6 {[%clk
0:01:11.7]} 36... e4 {[%clk 0:01:09]} 37. Qd7 {[%clk 0:01:06.3]} 37... Kg8
{[%clk 0:01:08.7]} 38. Qd8+ {[%clk 0:01:06.1]} 38... Kh7 {[%clk 0:01:06.4]} 39.
Qd7 {[%clk 0:01:03.7]} 39... Kg8 {[%clk 0:01:06.1]} 40. Qd4 {[%clk 0:01:03.8]}
40... Kf8 {[%clk 0:00:39.3]} 41. Qxe4 {[%clk 0:00:49.1]} 41... Qf6 {[%clk
0:00:34.8]} 42. Qb4+ {[%clk 0:00:42.9]} 42... Kf7 {[%clk 0:00:33.7]} 43. Qa5
{[%clk 0:00:39.1]} 43... Qe7 {[%clk 0:00:31.6]} 44. Qe5 {[%clk 0:00:38.8]} 44...
Kg8 {[%clk 0:00:27.9]} 45. Kh2 {[%clk 0:00:31.9]} 45... Qf7 {[%clk 0:00:24.7]}
46. Kg2 {[%clk 0:00:31]} 46... Qe7 {[%clk 0:00:25.1]} 47. f3 {[%clk 0:00:22.5]}
47... Kf7 {[%clk 0:00:24.4]} 48. Qh8 {[%clk 0:00:18.5]} 48... Qd6 {[%clk
0:00:24.2]} 49. Qh7+ {[%clk 0:00:17.6]} 49... Kf6 {[%clk 0:00:24.1]} 50. Qh8+
{[%clk 0:00:17.8]} 50... Kf7 {[%clk 0:00:24.2]} 51. Qh7+ {[%clk 0:00:18]} 51...
Kf6 {[%clk 0:00:24.3]} 52. Qh6 {[%clk 0:00:17.2]} 52... Qxc6 {[%clk 0:00:22.7]}
53. Qf8+ {[%clk 0:00:17.3]} 53... Ke5 {[%clk 0:00:22.6]} 54. Qf4+ {[%clk
0:00:17.6]} 54... Kd5 {[%clk 0:00:22.9]} 55. Qe4+ {[%clk 0:00:18.5]} 55... Kd6
{[%clk 0:00:22.6]} 56. Qxg6 {[%clk 0:00:19.4]} 56... Qd5 {[%clk 0:00:23]} 57.
Qe8 {[%clk 0:00:15.7]} 57... c5 {[%clk 0:00:21.1]} 58. Qd8+ {[%clk 0:00:15.6]}
58... Ke5 {[%clk 0:00:19.1]} 59. Qg5+ {[%clk 0:00:15.7]} 59... Kd6 {[%clk
0:00:18.6]} 60. Qd8+ {[%clk 0:00:15.7]} 60... Ke5 {[%clk 0:00:18.8]} 61. Qg5+
{[%clk 0:00:16]} 61... Kd6 {[%clk 0:00:18.5]} 62. Qd8+ {[%clk 0:00:16.1]}
1/2-1/2

[Event "Early-Titled-Tuesday-Blitz-September-26-2023"]
[Site "Chess.com"]
[Date "2023.09.26"]
[Round "6"]
[White "Roman_Ovetchkin"]
[Black "vishwa_vijeta"]
[Result "1/2-1/2"]
[WhiteElo "2691"]
[BlackElo "2547"]
[TimeControl "180+1"]
[EndTime "9:09:02 PDT"]
[Termination "Game drawn by repetition"]

1. d4 {[%clk 0:03:00.9]} 1... Nf6 {[%clk 0:02:59.7]} 2. c4 {[%clk 0:02:58.3]}
2... g6 {[%clk 0:02:59.5]} 3. Nc3 {[%clk 0:02:57.2]} 3... d5 {[%clk 0:02:59.4]}
4. cxd5 {[%clk 0:02:56.8]} 4... Nxd5 {[%clk 0:02:59]} 5. e4 {[%clk 0:02:57.7]}
5... Nxc3 {[%clk 0:02:59.1]} 6. bxc3 {[%clk 0:02:58.6]} 6... Bg7 {[%clk
0:02:59.6]} 7. Be3 {[%clk 0:02:58.1]} 7... c5 {[%clk 0:02:59.1]} 8. Nf3 {[%clk
0:02:57.2]} 8... O-O {[%clk 0:02:58.7]} 9. Qd2 {[%clk 0:02:54.9]} 9... Qa5
{[%clk 0:02:57.4]} 10. Rc1 {[%clk 0:02:51.6]} 10... Rd8 {[%clk 0:02:54.8]} 11.
d5 {[%clk 0:02:50.7]} 11... e6 {[%clk 0:02:53.5]} 12. Bg5 {[%clk 0:02:45.5]}
12... f6 {[%clk 0:02:49.2]} 13. Be3 {[%clk 0:02:45.5]} 13... exd5 {[%clk
0:02:46.8]} 14. exd5 {[%clk 0:02:45.4]} 14... b6 {[%clk 0:02:46.6]} 15. Be2
{[%clk 0:02:40.2]} 15... Bb7 {[%clk 0:02:41.3]} 16. c4 {[%clk 0:02:39.3]} 16...
Qxd2+ {[%clk 0:02:40.7]} 17. Nxd2 {[%clk 0:02:38.9]} 17... Nd7 {[%clk
0:02:40.4]} 18. h4 {[%clk 0:02:26.1]} 18... Re8 {[%clk 0:02:39.8]} 19. h5 {[%clk
0:02:17.8]} 19... f5 {[%clk 0:02:39]} 20. hxg6 {[%clk 0:02:11.2]} 20... hxg6
{[%clk 0:02:39.4]} 21. Nf3 {[%clk 0:02:09.5]} 21... Nf6 {[%clk 0:02:36.1]} 22.
Ng5 {[%clk 0:02:04.6]} 22... Bc8 {[%clk 0:02:16.5]} 23. Rh4 {[%clk 0:01:41.9]}
23... Bd7 {[%clk 0:02:09.5]} 24. Kd2 {[%clk 0:01:35.5]} 24... Ng4 {[%clk
0:02:01]} 25. Bxg4 {[%clk 0:01:34.3]} 25... fxg4 {[%clk 0:02:00.9]} 26. Ne6
{[%clk 0:01:06.8]} 26... Bxe6 {[%clk 0:01:25.5]} 27. dxe6 {[%clk 0:01:07.7]}
27... Rad8+ {[%clk 0:01:25.6]} 28. Ke2 {[%clk 0:01:04.4]} 28... Rxe6 {[%clk
0:01:25.5]} 29. Rxg4 {[%clk 0:01:04.5]} 29... Bh6 {[%clk 0:01:25.4]} 30. Rh1
{[%clk 0:01:00.3]} 30... Bxe3 {[%clk 0:01:23.7]} 31. fxe3 {[%clk 0:01:01.2]}
31... Rde8 {[%clk 0:01:23.8]} 32. Rh3 {[%clk 0:01:01.1]} 32... Kg7 {[%clk
0:01:22.2]} 33. Rgh4 {[%clk 0:01:00.1]} 33... R8e7 {[%clk 0:01:21.8]} 34. Rh7+
{[%clk 0:00:57.2]} 34... Kg8 {[%clk 0:01:20.3]} 35. Rh8+ {[%clk 0:00:42.3]}
35... Kg7 {[%clk 0:01:17.3]} 36. Rd8 {[%clk 0:00:23.5]} 36... Re4 {[%clk
0:01:09.1]} 37. Kd3 {[%clk 0:00:23.5]} 37... Rg4 {[%clk 0:01:09.2]} 38. Rdh8
{[%clk 0:00:17.2]} 38... Rxg2 {[%clk 0:01:04]} 39. R8h7+ {[%clk 0:00:17.1]}
39... Kf6 {[%clk 0:01:00.8]} 40. Rxe7 {[%clk 0:00:18]} 40... Kxe7 {[%clk
0:01:01.1]} 41. Rh7+ {[%clk 0:00:18.9]} 41... Kd6 {[%clk 0:00:59.4]} 42. Rxa7
{[%clk 0:00:19.6]} 42... Kc6 {[%clk 0:00:59.9]} 43. a4 {[%clk 0:00:15.7]} 43...
g5 {[%clk 0:00:59.4]} 44. Rg7 {[%clk 0:00:15]} 44... Rg1 {[%clk 0:00:58.6]} 45.
Rg6+ {[%clk 0:00:14.8]} 45... Kb7 {[%clk 0:00:58.2]} 46. Ke4 {[%clk 0:00:15.2]}
46... Ka6 {[%clk 0:00:55.8]} 47. Kd5 {[%clk 0:00:15]} 47... g4 {[%clk
0:00:54.4]} 48. Kc6 {[%clk 0:00:14.4]} 48... Ka5 {[%clk 0:00:53]} 49. e4 {[%clk
0:00:14.7]} 49... Kxa4 {[%clk 0:00:53.2]} 50. e5 {[%clk 0:00:15]} 50... Kb4
{[%clk 0:00:53.5]} 51. e6 {[%clk 0:00:14.8]} 51... Re1 {[%clk 0:00:53.4]} 52.
Kd5 {[%clk 0:00:13.1]} 52... Rd1+ {[%clk 0:00:46.3]} 53. Kc6 {[%clk 0:00:09.8]}
53... Re1 {[%clk 0:00:45.4]} 54. Kd5 {[%clk 0:00:07.6]} 54... Rd1+ {[%clk
0:00:21.5]} 55. Kc6 {[%clk 0:00:07.7]} 55... Re1 {[%clk 0:00:21.8]} 1/2-1/2

[Event "Early-Titled-Tuesday-Blitz-September-26-2023"]
[Site "Chess.com"]
[Date "2023.09.26"]
[Round "6"]
[White "McCarthyStone"]
[Black "FMStan15"]
[Result "0-1"]
[WhiteElo "2416"]
[BlackElo "2100"]
[TimeControl "180+1"]
[EndTime "9:09:03 PDT"]
[Termination "FMStan15 won by resignation"]

1. Nf3 {[%clk 0:03:00.9]} 1... Nf6 {[%clk 0:02:54.3]} 2. c4 {[%clk 0:02:59.6]}
2... d6 {[%clk 0:02:53.1]} 3. Nc3 {[%clk 0:02:58.7]} 3... e5 {[%clk 0:02:53.3]}
4. e4 {[%clk 0:02:57.2]} 4... Bg4 {[%clk 0:02:49.4]} 5. Be2 {[%clk 0:02:53.3]}
5... Nc6 {[%clk 0:02:49.5]} 6. O-O {[%clk 0:02:48.8]} 6... Be7 {[%clk
0:02:48.5]} 7. d3 {[%clk 0:02:36.5]} 7... O-O {[%clk 0:02:47.5]} 8. Be3 {[%clk
0:02:35.9]} 8... Bxf3 {[%clk 0:02:40.2]} 9. Bxf3 {[%clk 0:02:35.2]} 9... Nd4
{[%clk 0:02:40.5]} 10. Bxd4 {[%clk 0:02:32.8]} 10... exd4 {[%clk 0:02:40.4]} 11.
Ne2 {[%clk 0:02:32.6]} 11... c5 {[%clk 0:02:40.4]} 12. g3 {[%clk 0:02:31.7]}
12... Nd7 {[%clk 0:02:39.3]} 13. Bg2 {[%clk 0:02:30.9]} 13... Rb8 {[%clk
0:02:35.6]} 14. a4 {[%clk 0:02:28.7]} 14... a6 {[%clk 0:02:34.9]} 15. Nf4 {[%clk
0:02:26.1]} 15... Ne5 {[%clk 0:02:34.3]} 16. Nd5 {[%clk 0:02:25.4]} 16... Nc6
{[%clk 0:02:30.7]} 17. f4 {[%clk 0:02:23.6]} 17... Nb4 {[%clk 0:02:29.6]} 18.
Nxb4 {[%clk 0:02:19.2]} 18... cxb4 {[%clk 0:02:29.5]} 19. Qh5 {[%clk 0:02:15.1]}
19... g6 {[%clk 0:02:26.1]} 20. Qd5 {[%clk 0:02:09.1]} 20... Qb6 {[%clk
0:02:21.8]} 21. f5 {[%clk 0:01:59.9]} 21... Qc5 {[%clk 0:02:20.5]} 22. fxg6
{[%clk 0:01:58]} 22... hxg6 {[%clk 0:02:17.9]} 23. Bh3 {[%clk 0:01:55.6]} 23...
Qxd5 {[%clk 0:02:17.2]} 24. exd5 {[%clk 0:01:56.5]} 24... Bg5 {[%clk 0:02:09.9]}
25. Kg2 {[%clk 0:01:50.2]} 25... Rfe8 {[%clk 0:02:05.5]} 26. Rae1 {[%clk
0:01:48.9]} 26... Re3 {[%clk 0:02:02.4]} 27. Rxe3 {[%clk 0:01:38.4]} 27... dxe3
{[%clk 0:01:54.4]} 28. Kf3 {[%clk 0:01:34.8]} 28... Re8 {[%clk 0:01:48.7]} 29.
Ke2 {[%clk 0:01:34.2]} 29... Kg7 {[%clk 0:01:43.7]} 30. Bg2 {[%clk 0:01:27.3]}
30... Bf6 {[%clk 0:01:42.4]} 31. Rf4 {[%clk 0:01:24.5]} 31... Bxb2 {[%clk
0:01:25.8]} 32. c5 {[%clk 0:01:08.5]} 32... dxc5 {[%clk 0:01:18.1]} 33. d6
{[%clk 0:01:08.5]} 33... Rd8 {[%clk 0:01:11.8]} 34. Bd5 {[%clk 0:01:07.9]} 34...
Bf6 {[%clk 0:01:09.3]} 35. Kxe3 {[%clk 0:01:02.9]} 35... Rxd6 {[%clk 0:01:09.3]}
36. Bxb7 {[%clk 0:01:02.8]} 36... Rb6 {[%clk 0:01:09.3]} 37. Bd5 {[%clk
0:00:58.4]} 37... Bg5 {[%clk 0:01:07.9]} 38. Bb3 {[%clk 0:00:54.4]} 38... Rd6
{[%clk 0:01:00.2]} 39. h4 {[%clk 0:00:49.1]} 39... Bxf4+ {[%clk 0:00:59.9]} 40.
gxf4 {[%clk 0:00:50]} 40... Rd4 {[%clk 0:00:50.4]} 41. a5 {[%clk 0:00:49.3]}
41... f6 {[%clk 0:00:47.1]} 42. Be6 {[%clk 0:00:48.3]} 42... Kh6 {[%clk
0:00:46.1]} 43. Bf7 {[%clk 0:00:44.5]} 43... Rd7 {[%clk 0:00:37.2]} 44. Bc4
{[%clk 0:00:43.3]} 44... Rd6 {[%clk 0:00:34]} 45. Kf3 {[%clk 0:00:38.4]} 45...
Kh5 {[%clk 0:00:26.8]} 46. Kg3 {[%clk 0:00:38.7]} 46... Rc6 {[%clk 0:00:20.9]}
47. Bf7 {[%clk 0:00:34.6]} 47... Kh6 {[%clk 0:00:18.2]} 48. Kf3 {[%clk 0:00:32]}
48... Rd6 {[%clk 0:00:17.3]} 49. Bc4 {[%clk 0:00:31.8]} 49... b3 {[%clk
0:00:16]} 50. Ke3 {[%clk 0:00:28.6]} 50... b2 {[%clk 0:00:15.8]} 51. Ba2 {[%clk
0:00:29.4]} 51... Rd4 {[%clk 0:00:15.5]} 52. Kd2 {[%clk 0:00:26.1]} 52... Ra4
{[%clk 0:00:15.4]} 53. Bb1 {[%clk 0:00:26]} 53... Rxa5 {[%clk 0:00:14.8]} 54.
Kc2 {[%clk 0:00:26.8]} 54... Ra4 {[%clk 0:00:14.6]} 55. Kxb2 {[%clk 0:00:26.9]}
55... Rxf4 {[%clk 0:00:14.7]} 56. Kc3 {[%clk 0:00:27.5]} 56... Rxh4 {[%clk
0:00:14.6]} 57. Ba2 {[%clk 0:00:28.4]} 57... Rd4 {[%clk 0:00:13.3]} 58. Bc4
{[%clk 0:00:28.4]} 58... a5 {[%clk 0:00:13.6]} 59. Bb5 {[%clk 0:00:28.6]} 59...
Rb4 {[%clk 0:00:12.9]} 60. Bc6 {[%clk 0:00:28]} 60... a4 {[%clk 0:00:12.8]} 61.
d4 {[%clk 0:00:28.3]} 61... Rxd4 {[%clk 0:00:12.5]} 0-1

[Event "Early-Titled-Tuesday-Blitz-September-26-2023"]
[Site "Chess.com"]
[Date "2023.09.26"]
[Round "6"]
[White "quvnoq_muxlis"]
[Black "hakanazeri2"]
[Result "0-1"]
[WhiteElo "2788"]
[BlackElo "2603"]
[TimeControl "180+1"]
[EndTime "9:09:05 PDT"]
[Termination "hakanazeri2 won on time"]

1. e4 {[%clk 0:03:00.9]} 1... c5 {[%clk 0:02:58.1]} 2. Nf3 {[%clk 0:03:00.8]}
2... d6 {[%clk 0:02:48.1]} 3. d4 {[%clk 0:03:00.6]} 3... cxd4 {[%clk 0:02:49]}
4. Nxd4 {[%clk 0:03:01.5]} 4... Nf6 {[%clk 0:02:49.2]} 5. Nc3 {[%clk 0:03:02.1]}
5... a6 {[%clk 0:02:49.6]} 6. Be2 {[%clk 0:03:02.7]} 6... e5 {[%clk 0:02:49.8]}
7. Nb3 {[%clk 0:03:03.3]} 7... Be7 {[%clk 0:02:49.8]} 8. g4 {[%clk 0:03:03.8]}
8... h6 {[%clk 0:02:48.3]} 9. h4 {[%clk 0:03:04.2]} 9... Be6 {[%clk 0:02:47.5]}
10. Rg1 {[%clk 0:03:03.4]} 10... Nh7 {[%clk 0:02:36.6]} 11. h5 {[%clk
0:02:19.2]} 11... Nc6 {[%clk 0:02:30.7]} 12. Be3 {[%clk 0:02:17.1]} 12... Nf6
{[%clk 0:02:09.1]} 13. g5 {[%clk 0:02:06.5]} 13... hxg5 {[%clk 0:02:10]} 14.
Bxg5 {[%clk 0:02:07.3]} 14... Rc8 {[%clk 0:01:51.2]} 15. Qd2 {[%clk 0:01:36.8]}
15... Nxh5 {[%clk 0:01:43.1]} 16. Bxe7 {[%clk 0:01:35.8]} 16... Qxe7 {[%clk
0:01:42.2]} 17. O-O-O {[%clk 0:01:36.2]} 17... g6 {[%clk 0:01:36.9]} 18. Qxd6
{[%clk 0:01:32.8]} 18... Qxd6 {[%clk 0:01:32.7]} 19. Rxd6 {[%clk 0:01:33.7]}
19... Nf4 {[%clk 0:01:33.6]} 20. Bd1 {[%clk 0:00:56]} 20... Ke7 {[%clk
0:01:26.4]} 21. Rd2 {[%clk 0:00:54.2]} 21... Bxb3 {[%clk 0:01:20.1]} 22. axb3
{[%clk 0:00:53.7]} 22... Nd4 {[%clk 0:01:20.1]} 23. Rg5 {[%clk 0:00:30.1]} 23...
Kf6 {[%clk 0:01:13.7]} 24. Rg4 {[%clk 0:00:30.3]} 24... g5 {[%clk 0:01:08]} 25.
Kb1 {[%clk 0:00:23.3]} 25... Rh1 {[%clk 0:01:07.7]} 26. Ka2 {[%clk 0:00:14.2]}
26... Rc5 {[%clk 0:01:02.2]} 27. b4 {[%clk 0:00:11.7]} 27... Rc4 {[%clk
0:00:57.9]} 28. Nd5+ {[%clk 0:00:11.5]} 28... Nxd5 {[%clk 0:00:50.1]} 29. exd5
{[%clk 0:00:12.4]} 29... Rxb4 {[%clk 0:00:28.7]} 30. c3 {[%clk 0:00:12]} 30...
Nb3 {[%clk 0:00:29.2]} 31. Bxb3 {[%clk 0:00:10.3]} 31... Rxg4 {[%clk 0:00:26.4]}
32. d6 {[%clk 0:00:10.7]} 32... Rh8 {[%clk 0:00:25.6]} 33. Bd1 {[%clk
0:00:04.2]} 33... Rf4 {[%clk 0:00:22.3]} 34. f3 {[%clk 0:00:03.4]} 34... Rd8
{[%clk 0:00:18.8]} 35. c4 {[%clk 0:00:04]} 35... b6 {[%clk 0:00:18.1]} 36. b4
{[%clk 0:00:03.9]} 36... Rxc4 {[%clk 0:00:17]} 37. Bb3 {[%clk 0:00:03.2]} 37...
Rc6 {[%clk 0:00:15.8]} 38. d7 {[%clk 0:00:03]} 38... Ke7 {[%clk 0:00:16.3]} 39.
Re2 {[%clk 0:00:03.5]} 39... f6 {[%clk 0:00:16.1]} 40. Rh2 {[%clk 0:00:03.7]}
40... Rxd7 {[%clk 0:00:16.5]} 41. Rh7+ {[%clk 0:00:04.4]} 41... Kd6 {[%clk
0:00:17.2]} 42. Rh6 {[%clk 0:00:05.3]} 42... Kc7 {[%clk 0:00:16.2]} 43. Rh8
{[%clk 0:00:05.5]} 43... b5 {[%clk 0:00:16.4]} 44. Ra8 {[%clk 0:00:04.4]} 44...
Rd2+ {[%clk 0:00:13.3]} 45. Kb1 {[%clk 0:00:03.4]} 45... Rc3 {[%clk 0:00:13.4]}
46. Be6 {[%clk 0:00:03.1]} 46... Rxf3 {[%clk 0:00:13]} 47. Kc1 {[%clk
0:00:02.3]} 47... Rh2 {[%clk 0:00:12.8]} 48. Rc8+ {[%clk 0:00:02.2]} 48... Kd6
{[%clk 0:00:12.8]} 49. Rd8+ {[%clk 0:00:01.6]} 49... Kxe6 {[%clk 0:00:12.7]} 0-1